fUSD/lending_fUSD_20250101
["ID","MTS","AMOUNT","RATE_DAILY","PERIOD"]
[347335470,1735702256479,-500.0,0.0001133,2]
[347335471,1735702256490,-500.0,0.0001133,2]
[347335472,1735702256499,-500.0,0.0001133,2]
[347335473,1735702256509,-500.0,0.0001133,2]
[347335474,1735702256519,-500.0,0.0001133,2]
[347335475,1735702256528,-4160.68,0.0001133,2]
[347335476,1735702256539,-1251.3,0.0001133,2]
[347335477,1735702256549,-500.0,0.0001133,2]
[347335478,1735702256560,-1092.65,0.0001133,2]
[347335479,1735702256569,-215.74813853,0.0001133,2]
[347335480,1735702256580,-500.0,0.0001133,2]
[347335481,1735702256590,-778.92,0.0001133,2]
[347335482,1735702256600,-500.0,0.0001133,2]
[347335483,1735702256610,-666.11,0.0001133,2]
[347335484,1735702256621,-500.0,0.0001133,2]
[347335485,1735702256632,-500.0,0.0001133,2]
[347335486,1735702256643,-500.0,0.0001133,2]
[347335487,1735702256653,-500.0,0.0001133,2]
[347335488,1735702256665,-500.0,0.0001133,2]
[347335489,1735702256674,-1233.47,0.0001133,2]
[347335490,1735702256684,-500.0,0.0001133,2]
[347335491,1735702256694,-705.84,0.0001133,2]
[347335492,1735702256706,-500.0,0.0001133,2]
[347335493,1735702256715,-500.0,0.0001133,2]
[347335494,1735702256725,-756.73,0.0001133,2]
[347335495,1735702256734,-500.0,0.0001133,2]
[347335496,1735702256743,-957.06,0.0001133,2]
[347335497,1735702256753,-500.0,0.0001133,2]
[347335498,1735702256765,-500.0,0.0001133,2]
[347335499,1735702256775,-500.0,0.0001133,2]
[347335500,1735702256784,-900.26,0.0001133,2]
[347335501,1735702256795,-500.0,0.0001133,2]
[347335502,1735702256805,-500.0,0.0001133,2]
[347335503,1735702256815,-2246.42,0.0001133,2]
[347335504,1735702256826,-500.0,0.0001133,2]
[347335505,1735702256836,-4816.54,0.0001133,2]
[347335506,1735702256846,-500.0,0.0001133,2]
[347335507,1735702256855,-500.0,0.0001133,2]
[347335508,1735702256864,-500.0,0.0001133,2]
[347335509,1735702256874,-3016.08,0.0001133,2]
[347335510,1735702256884,-2612.09,0.0001133,2]
[347335511,1735702256894,-500.0,0.0001133,2]
[347335512,1735702256903,-500.0,0.0001133,2]
[347335513,1735702256913,-942.52,0.0001133,2]
[347335514,1735702256922,-3984.26,0.0001133,2]
[347335515,1735702256932,-500.0,0.0001133,2]
[347335516,1735702256942,-4771.13,0.0001133,2]
[347335517,1735702256952,-1470.86,0.0001133,2]
[347335518,1735702256961,-1955.44,0.0001133,2]
[347335519,1735702256970,-500.0,0.0001133,2]
[347335520,1735702256980,-1986.02,0.0001133,2]
[347335521,1735702256990,-4804.65,0.0001133,2]
[347335522,1735702257000,-500.0,0.0001133,2]
[347335523,1735702257009,-2157.11,0.0001133,2]
[347335524,1735702257019,-2597.37,0.0001133,2]
[347335525,1735702257028,-1187.99,0.0001133,2]
[347335526,1735702257038,-3053.91,0.0001133,2]
[347335527,1735702257047,-1429.61,0.0001133,2]
[347335528,1735702257057,-541.45,0.0001133,2]
[347335529,1735702257066,-500.0,0.0001133,2]
[347335530,1735702257075,-500.0,0.0001133,2]
[347335531,1735702257085,-1429.63,0.0001133,2]
[347335532,1735702257094,-500.0,0.0001133,2]
[347335533,1735702257103,-500.0,0.0001133,2]
[347335534,1735702257112,-2440.6,0.0001133,2]
[347335535,1735702257121,-500.0,0.0001133,2]
[347335536,1735702257131,-975.83,0.0001133,2]
[347335537,1735702257140,-2719.5,0.0001133,2]
[347335538,1735702257150,-500.0,0.0001133,2]
[347335539,1735702257159,-6609.64,0.0001133,2]
[347335540,1735702257168,-4950.72,0.0001133,2]
[347335541,1735702257177,-500.0,0.0001133,2]
[347335542,1735702257186,-2572.53,0.0001133,2]
[347335543,1735702257195,-500.0,0.0001133,2]
[347335544,1735702257205,-500.0,0.0001133,2]
[347335545,1735702257214,-606.14,0.0001133,2]
[347335546,1735702257223,-2141.92,0.0001133,2]
[347335547,1735702257233,-2760.52,0.0001133,2]
[347335548,1735702257243,-2277.85,0.0001133,2]
[347335549,1735702257253,-500.0,0.0001133,2]
[347335550,1735702257262,-2603.44,0.0001133,2]
[347335551,1735702257271,-500.0,0.0001133,2]
[347335552,1735702257280,-466.89338659,0.0001133,2]
[347335553,1735702257290,-1799.67,0.0001133,2]
[347335554,1735702257300,-1010.69,0.0001133,2]
[347335555,1735702257310,-2275.22,0.0001133,2]
[347335556,1735702257319,-500.0,0.0001133,2]
[347335557,1735702257328,-4027.52,0.0001133,2]
[347335558,1735702257337,-1007.0,0.0001133,2]
[347335559,1735702257348,-500.0,0.0001133,2]
[347335560,1735702257357,-500.0,0.0001133,2]
[347335561,1735702257367,-1263.72,0.0001133,2]
[347335562,1735702257377,-500.0,0.0001133,2]
[347335563,1735702257389,-500.0,0.0001133,2]
[347335564,1735702257402,-500.0,0.0001133,2]
[347335565,1735702257412,-2580.25,0.0001133,2]
[347335566,1735702257421,-1211.0,0.0001133,2]
[347335567,1735702257430,-4363.6,0.0001133,2]
[347335568,1735702257441,-500.0,0.0001133,2]
[347335569,1735702257450,-576.99630277,0.0001133,2]
[347335570,1735702257460,-2645.59,0.0001133,2]
[347335571,1735702257469,-500.0,0.0001133,2]
[347335572,1735702257478,-500.0,0.0001133,2]
[347335573,1735702257487,-1019.04,0.0001133,2]
[347335574,1735702257497,-500.0,0.0001133,2]
[347335575,1735702257507,-500.0,0.0001133,2]
[347335576,1735702257518,-3456.54,0.0001133,2]
[347335577,1735702257528,-1903.57,0.0001133,2]
[347335578,1735702257538,-500.0,0.0001133,2]
[347335579,1735702257547,-2862.74,0.0001133,2]
[347335580,1735702257557,-7997.07,0.0001133,2]
[347335581,1735702257568,-2174.65,0.0001133,2]
[347335582,1735702257578,-640.23063013,0.0001133,2]
[347335583,1735702257587,-500.0,0.0001133,2]
[347335584,1735702257596,-500.0,0.0001133,2]
[347335585,1735702257606,-2292.73,0.0001133,2]
[347335586,1735702257616,-8114.80781768,0.0001133,2]
[347335587,1735702257631,-1878.28251286,0.0001133,2]
[347335589,1735702258400,-546.006,0.00011055,2]
[347335590,1735702258412,-356.20926424,0.00011055,2]
[347335591,1735702258422,-340.762495,0.00011055,2]
[347335592,1735702258508,-362.02612854,0.00011055,2]
[347335593,1735702258519,-719.95798759,0.00011055,2]
[347335594,1735702258531,-206.31812463,0.00011055,2]
[347335595,1735702258540,-500.0,0.00011055,2]
[347335596,1735702258548,-206.02802629,0.00011056,2]
[347335597,1735702258559,-249.33274854,0.00011056,2]
[347335598,1735702258569,-2531.28,0.00011329,2]
[347335599,1735702258578,-500.0,0.00011329,2]
[347335600,1735702258587,-3419.38725146,0.0001133,2]
[347335601,1735702258599,-2529.172418,0.0001133,2]
[347335602,1735702258608,-500.0,0.0001133,2]
[347335603,1735702258617,-2951.25,0.0001133,2]
[347335604,1735702258626,-500.0,0.0001133,2]
[347335605,1735702258635,-1693.79,0.0001133,2]
[347335606,1735702258644,-2317.97,0.0001133,2]
[347335607,1735702258653,-3226.32,0.0001133,2]
[347335608,1735702258662,-500.0,0.0001133,2]
[347335609,1735702258671,-500.0,0.0001133,2]
[347335610,1735702258680,-324.225377,0.0001133,2]
[347335611,1735702258690,-3001.46,0.0001133,2]
[347335612,1735702258699,-5462.42390028,0.0001133,2]
[347335613,1735702258712,-581.88609972,0.0001133,2]
[347335614,1735702258721,-500.0,0.0001133,2]
[347335615,1735702258731,-21081.44,0.0001133,2]
[347335616,1735702258742,-177.3580984,0.0001133,2]
[347335617,1735702258751,-569.14,0.0001133,2]
[347335618,1735702258761,-9358.64,0.0001133,2]
[347335619,1735702258771,-578.11,0.0001133,2]
[347335620,1735702258783,-500.0,0.0001133,2]
[347335621,1735702258794,-500.0,0.0001133,2]
[347335622,1735702258805,-500.0,0.0001133,2]
[347335623,1735702258815,-3900.03,0.0001133,2]
[347335624,1735702258826,-500.0,0.0001133,2]
[347335625,1735702258837,-3613.1,0.0001133,2]
[347335626,1735702258847,-1252.04,0.0001133,2]
[347335627,1735702258857,-500.0,0.0001133,2]
[347335628,1735702258868,-500.0,0.0001133,2]
[347335629,1735702258878,-771.83,0.0001133,2]
[347335630,1735702258888,-4253.08,0.0001133,2]
[347335631,1735702258897,-10221.07436288,0.0001133,2]
[347335632,1735702258908,-378.78294716,0.0001133,2]
[347335633,1735702258919,-813.5,0.0001133,2]
[347335634,1735702258930,-2466.27268996,0.0001133,2]
[347335635,1735702258939,-500.0,0.0001133,2]
[347335636,1735702258949,-4355.16,0.0001133,2]
[347335637,1735702258958,-4647.31,0.0001133,2]
[347335638,1735702258967,-500.0,0.0001133,2]
[347335639,1735702259245,-4558.72,0.0001133,2]
[347335640,1735702259254,-7723.67,0.0001133,2]
[347335641,1735702259263,-500.0,0.00011331,2]
[347335642,1735702259274,-843.07,0.00011331,2]
[347335643,1735702259283,-500.0,0.00011331,2]
[347335644,1735702259292,-1240.86,0.00011331,2]
[347335645,1735702259302,-2018.49,0.00011331,2]
[347335646,1735702259312,-500.0,0.00011331,2]
[347335647,1735702259321,-500.0,0.00011331,2]
[347335648,1735702259331,-1672.66,0.00011331,2]
[347335649,1735702259340,-500.0,0.00011331,2]
[347335650,1735702259350,-721.96,0.00011331,2]
[347335651,1735702259359,-500.0,0.00011331,2]
[347335652,1735702259368,-568.79,0.00011331,2]
[347335653,1735702259378,-500.0,0.00011331,2]
[347335654,1735702259388,-571.03,0.00011331,2]
[347335655,1735702259400,-753.89,0.00011331,2]
[347335656,1735702259411,-500.0,0.00011331,2]
[347335657,1735702259420,-500.0,0.00011331,2]
[347335658,1735702259430,-500.0,0.00011331,2]
[347335659,1735702259440,-1715.16,0.00011331,2]
[347335660,1735702259450,-839.08673062,0.00011331,2]
[347335661,1735702259462,-937.69234994,0.00011331,2]
[347335662,1735702259528,-1259.02,0.00011221,2]
[347335663,1735702259537,-106.45091944,0.00011331,2]
[347335664,1735702259547,-392.10220245,0.00011331,2]
[347335665,1735702295370,197.532,0.0001076,2]
[347335666,1735702301234,15623.98315418,0.00011,2]
[347335667,1735702325708,400.0,0.00010986,2]
[347335668,1735702342060,5000.0,0.00010956,2]
[347335669,1735702406799,250.0,0.00010213,2]
[347335670,1735702417543,250.0,0.00010213,2]
[347335672,1735702500415,150.010111,0.0002,120]
[347335673,1735702502937,150.010111,0.0002,120]
[347335674,1735702503457,150.010111,0.0002,120]
[347335675,1735702504515,150.010111,0.0002,120]
[347335676,1735702504660,150.010111,0.0002,120]
[347335677,1735702504777,150.010111,0.0002,120]
[347335678,1735702505224,150.010111,0.0002,120]
[347335679,1735702505368,150.010111,0.0002,120]
[347335680,1735702598125,321.99845484,0.00010957,2]
[347335681,1735702600568,5637.2,0.00010186,2]
[347335682,1735702683328,160.17460166,0.00010955,2]
[347335683,1735702722136,289.1312301,0.00010957,2]
[347335684,1735702744189,214.66563656,0.00010956,2]
[347335685,1735702749103,214.66563654,0.00010957,2]
[347335686,1735702753755,214.66563654,0.00010958,2]
[347335687,1735702755029,556.17,0.00010179,2]
[347335688,1735702792985,699.65,8.262e-05,2]
[347335689,1735702793216,699.65,0.00010525,2]
[347335690,1735702801119,168.31,0.00010485,2]
[347335691,1735702964066,420.5091508,0.00010994,2]
[347335692,1735702972304,444.04,0.00010146,2]
[347335693,1735702976664,189.05,0.00010137,2]
[347335695,1735702986520,189.045,0.0001076,2]
[347335696,1735703080154,165.83432948,0.00010956,2]
[347335697,1735703150313,163.3,0.00010149,2]
[347335698,1735703182236,1000.0,0.0001015,2]
[347335699,1735703291433,250.0,0.00010151,2]
[347335700,1735703322757,339.7,0.00010151,2]
[347335720,1735703432511,-300.0,0.00011014,2]
[347335722,1735703432520,-1057.0,0.00011015,2]
[347335724,1735703432530,-1057.0,0.00011015,2]
[347335726,1735703432539,-1057.0,0.00011015,2]
[347335728,1735703432550,-1057.0,0.00011015,2]
[347335730,1735703432560,-497.0,0.00011015,2]
[347335732,1735703432572,-560.0,0.00011015,2]
[347335734,1735703432581,-1057.0,0.00011015,2]
[347335736,1735703432590,-1057.0,0.00011015,2]
[347335738,1735703432599,-1057.0,0.00011015,2]
[347335740,1735703432609,-2992.20293524,0.00011015,2]
[347335742,1735703432620,-4642.72239074,0.00011015,2]
[347335744,1735703432630,-1057.0,0.00011015,2]
[347335746,1735703432639,-1057.0,0.00011015,2]
[347335748,1735703432648,-1081.05813297,0.00011015,2]
[347335750,1735703432657,-3924.79075794,0.00011053,2]
[347335752,1735703432669,-1385.57924206,0.00011053,2]
[347335754,1735703432679,-3825.91,0.00011053,2]
[347335756,1735703432688,-3499.27,0.00011053,2]
[347335758,1735703432697,-500.0,0.00011053,2]
[347335760,1735703432706,-1070.31,0.00011053,2]
[347335762,1735703432715,-822.39,0.00011053,2]
[347335764,1735703432725,-1181.97,0.00011053,2]
[347335766,1735703432734,-797.78,0.00011053,2]
[347335768,1735703432744,-637.34129383,0.00011053,2]
[347335770,1735703432754,-1863.34,0.00011053,2]
[347335772,1735703432763,-6227.15,0.00011053,2]
[347335773,1735703432773,-500.0,0.00011053,2]
[347335775,1735703432782,-772.81,0.00011053,2]
[347335777,1735703432792,-1850.29,0.00011053,2]
[347335779,1735703432802,-500.0,0.00011053,2]
[347335781,1735703432811,-500.0,0.00011053,2]
[347335783,1735703432820,-500.0,0.00011053,2]
[347335785,1735703432829,-552.15,0.00011053,2]
[347335787,1735703432838,-500.0,0.00011053,2]
[347335789,1735703432848,-500.0,0.00011053,2]
[347335791,1735703432858,-1137.46,0.00011053,2]
[347335793,1735703432867,-500.0,0.00011053,2]
[347335795,1735703432880,-500.0,0.00011053,2]
[347335797,1735703432890,-814.57,0.00011053,2]
[347335799,1735703432900,-1533.27,0.00011053,2]
[347335801,1735703432909,-661.79,0.00011053,2]
[347335803,1735703432918,-500.0,0.00011053,2]
[347335805,1735703432931,-777.67,0.00011053,2]
[347335807,1735703432940,-500.0,0.00011053,2]
[347335809,1735703432950,-523.44,0.00011053,2]
[347335811,1735703432959,-500.26,0.00011053,2]
[347335813,1735703432969,-896.06,0.00011053,2]
[347335815,1735703432978,-500.0,0.00011053,2]
[347335817,1735703432987,-691.06,0.00011053,2]
[347335819,1735703432997,-521.4,0.00011053,2]
[347335820,1735703433007,-582.63,0.00011053,2]
[347335822,1735703433017,-727.24,0.00011053,2]
[347335824,1735703433027,-689.56,0.00011053,2]
[347335826,1735703433037,-1135.83,0.00011053,2]
[347335828,1735703433047,-2643.16,0.00011053,2]
[347335830,1735703433057,-1726.3,0.00011053,2]
[347335832,1735703433066,-500.0,0.00011053,2]
[347335834,1735703433076,-4451.77,0.00011053,2]
[347335836,1735703433086,-500.0,0.00011053,2]
[347335838,1735703433096,-500.0,0.00011053,2]
[347335840,1735703433105,-802.18,0.00011053,2]
[347335842,1735703433114,-821.16,0.00011053,2]
[347335844,1735703433123,-500.0,0.00011053,2]
[347335846,1735703433132,-1095.83,0.00011053,2]
[347335848,1735703433142,-1987.74,0.00011053,2]
[347335850,1735703433152,-1504.9,0.00011053,2]
[347335852,1735703433161,-2320.34,0.00011053,2]
[347335854,1735703433170,-1529.15,0.00011053,2]
[347335856,1735703433180,-4306.18,0.00011053,2]
[347335858,1735703433189,-500.0,0.00011053,2]
[347335860,1735703433198,-500.0,0.00011053,2]
[347335861,1735703433208,-500.0,0.00011053,2]
[347335863,1735703433217,-500.0,0.00011053,2]
[347335865,1735703433227,-1633.46,0.00011053,2]
[347335867,1735703433236,-500.0,0.00011053,2]
[347335869,1735703433245,-6832.84,0.00011053,2]
[347335871,1735703433255,-500.0,0.00011053,2]
[347335873,1735703433265,-1148.82,0.00011053,2]
[347335875,1735703433274,-688.2,0.00011053,2]
[347335876,1735703433283,-500.0,0.00011053,2]
[347335877,1735703433292,-500.0,0.00011053,2]
[347335878,1735703433302,-500.0,0.00011053,2]
[347335879,1735703433312,-401.17589033,0.00011053,2]
[347335880,1735703433325,-98.82410967,0.00011053,2]
[347335881,1735703433334,-2541.95,0.00011053,2]
[347335882,1735703433343,-500.0,0.00011053,2]
[347335883,1735703433353,-1158.27,0.00011053,2]
[347335884,1735703433362,-500.0,0.00011053,2]
[347335885,1735703433371,-990.64,0.00011053,2]
[347335886,1735703433380,-500.0,0.00011053,2]
[347335887,1735703433390,-9552.3,0.00011053,2]
[347335888,1735703433399,-549.01,0.00011053,2]
[347335889,1735703433408,-989.53,0.00011053,2]
[347335890,1735703433418,-500.0,0.00011053,2]
[347335891,1735703433427,-639.06,0.00011053,2]
[347335892,1735703433436,-4902.49,0.00011053,2]
[347335893,1735703433446,-500.0,0.00011053,2]
[347335895,1735703433455,-1490.62,0.00011053,2]
[347335897,1735703433464,-500.0,0.00011053,2]
[347335899,1735703433474,-2507.69,0.00011053,2]
[347335901,1735703433484,-30436.72,0.00011053,2]
[347335903,1735703433493,-500.0,0.00011053,2]
[347335905,1735703433502,-666.05,0.00011053,2]
[347335907,1735703433512,-1282.69,0.00011053,2]
[347335909,1735703433521,-9498.33,0.00011053,2]
[347335911,1735703433530,-629.4,0.00011053,2]
[347335913,1735703433539,-3387.53,0.00011053,2]
[347335915,1735703433550,-633.89,0.00011053,2]
[347335917,1735703433559,-500.0,0.00011053,2]
[347335919,1735703433568,-500.0,0.00011053,2]
[347335920,1735703433578,-500.0,0.00011053,2]
[347335922,1735703433587,-500.0,0.00011053,2]
[347335924,1735703433596,-1624.04,0.00011053,2]
[347335926,1735703433607,-500.0,0.00011053,2]
[347335928,1735703433617,-1303.50318222,0.00011053,2]
[347335943,1735703433744,-450.653,0.00011053,2]
[347335951,1735703433821,-1189.367004,0.00011053,2]
[347336347,1735703437824,-2831.33681378,0.00011053,2]
[347336350,1735703437835,-779.85,0.00011053,2]
[347336351,1735703437847,-5554.8,0.00011053,2]
[347336352,1735703437857,-822.18,0.00011053,2]
[347336353,1735703437866,-500.0,0.00011053,2]
[347336354,1735703437876,-923.14,0.00011053,2]
[347336355,1735703437886,-500.0,0.00011053,2]
[347336356,1735703437897,-500.0,0.00011053,2]
[347336357,1735703437907,-752.32,0.00011053,2]
[347336358,1735703437918,-2586.91,0.00011053,2]
[347336359,1735703437932,-379.91037653,0.00011053,2]
[347336360,1735703437943,-2061.81,0.00011053,2]
[347336361,1735703437953,-657.16,0.00011053,2]
[347336363,1735703437964,-5740.32,0.00011053,2]
[347336365,1735703437975,-500.0,0.00011053,2]
[347336367,1735703437985,-7387.39,0.00011053,2]
[347336369,1735703437996,-500.0,0.00011053,2]
[347336371,1735703438007,-4124.44,0.00011053,2]
[347336373,1735703438017,-599.63,0.00011053,2]
[347336375,1735703438027,-500.0,0.00011053,2]
[347336378,1735703438037,-1616.45,0.00011053,2]
[347336380,1735703438047,-12591.14,0.00011053,2]
[347336382,1735703438057,-1243.23,0.00011053,2]
[347336384,1735703438067,-1288.36,0.00011053,2]
[347336386,1735703438077,-1727.69335096,0.00011053,2]
[347336392,1735703438131,-2205.65664904,0.00011053,2]
[347336394,1735703438141,-500.0,0.00011053,2]
[347336396,1735703438151,-881.93930038,0.00011053,2]
[347336399,1735703438163,-3574.0,0.00011053,2]
[347336401,1735703438175,-14585.10069962,0.00011053,2]
[347336403,1735703438185,-500.0,0.00011053,2]
[347336405,1735703438195,-500.0,0.00011053,2]
[347336407,1735703438205,-646.83,0.00011053,2]
[347336409,1735703438215,-12255.86,0.00011053,2]
[347336411,1735703438225,-500.0,0.00011053,2]
[347336413,1735703438235,-1691.006083,0.00011053,2]
[347336415,1735703438244,-500.0,0.00011053,2]
[347336417,1735703438254,-2018.68,0.00011053,2]
[347336419,1735703438264,-771.71,0.00011053,2]
[347336421,1735703438274,-4661.88,0.00011053,2]
[347336423,1735703438284,-838.82,0.00011053,2]
[347336425,1735703438294,-624.66,0.00011053,2]
[347336427,1735703438304,-1803.25,0.00011053,2]
[347336430,1735703438314,-1677.316952,0.00011053,2]
[347336432,1735703438324,-1349.48,0.00011053,2]
[347336434,1735703438334,-500.0,0.00011053,2]
[347336436,1735703438344,-18863.96,0.00011053,2]
[347336438,1735703438354,-3486.53,0.00011053,2]
[347336440,1735703438364,-1986.6,0.00011053,2]
[347336442,1735703438373,-513.96,0.00011053,2]
[347336444,1735703438383,-154.758914,0.00011053,2]
[347336446,1735703438393,-4649.86,0.00011053,2]
[347336448,1735703438403,-1071.76,0.00011053,2]
[347336450,1735703438413,-500.0,0.00011053,2]
[347336452,1735703438423,-152.944311,0.00011053,2]
[347336454,1735703438432,-989.95,0.00011053,2]
[347336456,1735703438442,-1232.89,0.00011053,2]
[347336458,1735703438452,-3400.0,0.00011053,2]
[347336460,1735703438462,-1797.34,0.00011053,2]
[347336462,1735703438471,-500.0,0.00011053,2]
[347336464,1735703438481,-1025.16,0.00011053,2]
[347336466,1735703438490,-768.76,0.00011053,2]
[347336468,1735703438500,-803.01,0.00011053,2]
[347336470,1735703438510,-1126.41,0.00011053,2]
[347336472,1735703438520,-792.84,0.00011053,2]
[347336474,1735703438529,-500.0,0.00011054,2]
[347336476,1735703438539,-500.0,0.00011054,2]
[347336479,1735703438550,-500.0,0.00011054,2]
[347336481,1735703438560,-500.0,0.00011054,2]
[347336483,1735703438570,-500.0,0.00011054,2]
[347336485,1735703438579,-500.0,0.00011054,2]
[347336487,1735703438588,-500.0,0.00011054,2]
[347336489,1735703438598,-500.0,0.00011054,2]
[347336491,1735703438607,-500.0,0.00011054,2]
[347336493,1735703438617,-1123.85,0.00011054,2]
[347336495,1735703438626,-500.0,0.00011054,2]
[347336497,1735703438636,-3222.51,0.00011054,2]
[347336499,1735703438646,-500.0,0.00011054,2]
[347336501,1735703438655,-1215.76,0.00011054,2]
[347336503,1735703438666,-500.0,0.00011054,2]
[347336505,1735703438675,-775.27,0.00011054,2]
[347336507,1735703438685,-500.0,0.00011054,2]
[347336509,1735703438694,-500.0,0.00011054,2]
[347336548,1735703439046,-2869.38,0.00011054,2]
[347336551,1735703439073,-822.3,0.00011054,2]
[347336553,1735703439083,-500.0,0.00011054,2]
[347336555,1735703439093,-922.02,0.00011054,2]
[347336557,1735703439103,-1252.15,0.00011054,2]
[347336559,1735703439112,-500.0,0.00011054,2]
[347336561,1735703439122,-500.0,0.00011054,2]
[347336563,1735703439132,-1952.04,0.00011054,2]
[347336565,1735703439142,-524.62,0.00011054,2]
[347336567,1735703439151,-500.0,0.00011054,2]
[347336569,1735703439161,-500.0,0.00011054,2]
[347336571,1735703439170,-3040.72,0.00011054,2]
[347336573,1735703439180,-500.0,0.00011054,2]
[347336575,1735703439189,-3405.06,0.00011054,2]
[347336577,1735703439199,-500.0,0.00011054,2]
[347336579,1735703439209,-500.0,0.00011054,2]
[347336581,1735703439219,-1847.71,0.00011054,2]
[347336583,1735703439229,-500.0,0.00011054,2]
[347336585,1735703439238,-3636.95,0.00011054,2]
[347336587,1735703439248,-2281.57,0.00011054,2]
[347336589,1735703439258,-500.0,0.00011054,2]
[347336591,1735703439267,-1644.82,0.00011054,2]
[347336593,1735703439277,-500.0,0.00011054,2]
[347336595,1735703439287,-500.0,0.00011054,2]
[347336597,1735703439296,-500.0,0.00011054,2]
[347336599,1735703439306,-2136.83,0.00011054,2]
[347336601,1735703439316,-500.0,0.00011054,2]
[347336603,1735703439326,-1147.03,0.00011054,2]
[347336605,1735703439336,-500.0,0.00011054,2]
[347336607,1735703439345,-500.0,0.00011054,2]
[347336609,1735703439355,-3132.75,0.00011054,2]
[347336611,1735703439365,-714.01,0.00011054,2]
[347336613,1735703439375,-500.0,0.00011054,2]
[347336615,1735703439384,-500.0,0.00011054,2]
[347336617,1735703439394,-500.0,0.00011054,2]
[347336619,1735703439403,-1643.94,0.00011054,2]
[347336621,1735703439412,-500.0,0.00011054,2]
[347336623,1735703439422,-500.0,0.00011054,2]
[347336625,1735703439431,-500.0,0.00011054,2]
[347336627,1735703439442,-1692.14,0.00011054,2]
[347336629,1735703439451,-896.14,0.00011054,2]
[347336631,1735703439462,-500.0,0.00011054,2]
[347336633,1735703439472,-4350.67,0.00011054,2]
[347336635,1735703439481,-381.31500507,0.00011054,2]
[347336638,1735703439491,-500.0,0.00011054,2]
[347336640,1735703439501,-683.51,0.00011054,2]
[347336642,1735703439510,-825.24,0.00011054,2]
[347336644,1735703439520,-500.0,0.00011054,2]
[347336646,1735703439531,-500.0,0.00011054,2]
[347336648,1735703439540,-3813.95,0.00011054,2]
[347336650,1735703439550,-1001.6,0.00011054,2]
[347336652,1735703439561,-14634.02,0.00011054,2]
[347336654,1735703439570,-500.0,0.00011054,2]
[347336656,1735703439580,-500.0,0.00011054,2]
[347336658,1735703439590,-2394.41,0.00011054,2]
[347336660,1735703439599,-500.0,0.00011054,2]
[347336662,1735703439609,-500.0,0.00011054,2]
[347336664,1735703439619,-2521.53359954,0.00011054,2]
[347336666,1735703439634,-451.15504761,0.00011054,2]
[347336668,1735703439647,-679.54135285,0.00011054,2]
[347336670,1735703439658,-500.0,0.00011054,2]
[347336673,1735703439669,-5860.83,0.00011054,2]
[347336675,1735703439679,-500.0,0.00011054,2]
[347336676,1735703439689,-1130.68,0.00011054,2]
[347336678,1735703439699,-500.0,0.00011054,2]
[347336680,1735703439709,-500.0,0.00011054,2]
[347336683,1735703439719,-1348.29,0.00011054,2]
[347336685,1735703439729,-698.02,0.00011054,2]
[347336687,1735703439739,-1820.52,0.00011054,2]
[347336689,1735703439749,-877.3,0.00011054,2]
[347336691,1735703439759,-500.0,0.00011054,2]